bitfinex/quotes_BTCUSD_20250726
["timestamp","ask_amount","ask_price","bid_price","bid_amount"]
[1753507840031,0.0473213,117620.0,117610.0,0.65496485]
[1753507840678,0.05582267,117620.0,117610.0,0.65496485]
[1753507842450,0.06432419,117620.0,117610.0,0.65496485]
[1753507843374,0.05582267,117620.0,117610.0,0.65496485]
[1753507844320,0.06432419,117620.0,117610.0,0.65496485]
[1753507844979,0.05582267,117620.0,117610.0,0.65496485]
[1753507846318,0.0473213,117620.0,117610.0,0.65496485]
[1753507848079,0.03882,117620.0,117610.0,0.65496485]
[1753507848770,0.04732137,117620.0,117610.0,0.65496485]
[1753507849220,0.0473213,117620.0,117610.0,0.65496485]
[1753507849925,0.03882,117620.0,117610.0,0.65496485]
[1753507850345,0.0473213,117620.0,117610.0,0.65496485]
[1753507853703,0.0473213,117620.0,117610.0,0.65790485]
[1753507854144,0.03882,117620.0,117610.0,0.65790485]
[1753507856532,0.0161,117620.0,117610.0,0.65790485]
[1753507858112,0.04085,117620.0,117610.0,0.65790485]
[1753507860081,0.0161,117620.0,117610.0,0.65790485]
[1753507864581,0.04085,117620.0,117610.0,0.65790485]
[1753507865809,0.04085,117620.0,117610.0,0.65496485]
[1753507866065,0.04085,117620.0,117610.0,0.73351291]
[1753507866302,0.04085,117620.0,117610.0,0.65496485]
[1753507868649,0.0493513,117620.0,117610.0,0.65496485]
[1753507869039,0.04085,117620.0,117610.0,0.65496485]
[1753507872626,0.0493513,117620.0,117610.0,0.65496485]
[1753507873141,0.04085,117620.0,117610.0,0.65496485]
[1753507873580,0.0493513,117620.0,117610.0,0.65496485]
[1753507874466,0.05999274,117620.0,117610.0,0.62999485]
[1753507874681,0.0676913,117620.0,117610.0,0.62999485]
[1753507876654,0.07619274,117620.0,117610.0,0.62999485]
[1753507876875,0.0676913,117620.0,117610.0,0.62999485]
[1753507877089,0.07619267,117620.0,117610.0,0.62999485]
[1753507877752,0.0676913,117620.0,117610.0,0.62999485]
[1753507878812,0.0676913,117620.0,117610.0,0.65414485]
[1753507880267,0.07619274,117620.0,117610.0,0.65414485]
[1753507880486,0.0676913,117620.0,117610.0,0.65414485]
[1753507880691,0.07619274,117620.0,117610.0,0.65414485]
[1753507881930,0.07619274,117620.0,117610.0,0.73269291]
[1753507882141,0.07619274,117620.0,117610.0,0.65414485]
[1753507882846,0.07619274,117620.0,117610.0,0.62999485]
[1753507883500,0.07619274,117620.0,117610.0,0.62149268]
[1753507883712,0.07619274,117620.0,117610.0,0.62999485]
[1753507884494,0.07619267,117620.0,117610.0,0.62999485]
[1753507885142,0.0676913,117620.0,117610.0,0.65414485]
[1753507885452,0.07619267,117620.0,117610.0,0.65414485]
[1753507886440,0.0676913,117620.0,117610.0,0.65414485]
[1753507887783,0.07619274,117620.0,117610.0,0.65414485]
[1753507888103,0.07619274,117620.0,117610.0,0.73269291]
[1753507888305,0.07619274,117620.0,117610.0,0.65414485]
[1753507889229,0.0676913,117620.0,117610.0,0.65414485]
[1753507890583,0.07619267,117620.0,117610.0,0.65414485]
[1753507890791,0.05999267,117620.0,117610.0,0.65414485]
[1753507891209,0.05999267,117620.0,117610.0,0.73269291]
[1753507891420,0.05999267,117620.0,117610.0,0.65414485]
[1753507892261,0.07509267,117620.0,117610.0,0.65414485]
[1753507892521,0.07831267,117620.0,117610.0,0.62999485]
[1753507893654,0.07509267,117620.0,117610.0,0.62999485]
[1753507893869,0.0665913,117620.0,117610.0,0.65348485]
[1753507894381,0.07509274,117620.0,117610.0,0.65348485]
[1753507894589,0.0665913,117620.0,117610.0,0.65348485]
[1753507894794,0.07509274,117620.0,117610.0,0.65348485]
[1753507895233,0.05999267,117620.0,117610.0,0.65348485]
[1753507899541,0.0514913,117620.0,117610.0,0.65348485]
[1753507899752,0.05999267,117620.0,117610.0,0.65348485]
[1753507900537,0.0514913,117620.0,117610.0,0.65348485]
[1753507903001,0.0493513,117620.0,117610.0,0.65348485]
[1753507903211,0.0246013,117620.0,117610.0,0.65665485]
[1753507904103,0.02460137,117620.0,117610.0,0.65665485]
[1753507904538,0.0161,117620.0,117610.0,0.65665485]
[1753507905091,0.0246013,117620.0,117610.0,0.65665485]
[1753507906602,0.03310267,117620.0,117610.0,0.65665485]
[1753507907056,0.0246013,117620.0,117610.0,0.65665485]
[1753507911004,0.0161,117620.0,117610.0,0.65665485]
[1753507917934,0.02460137,117620.0,117610.0,0.65665485]
[1753507918221,0.0161,117620.0,117610.0,0.65665485]
[1753507918444,0.02460137,117620.0,117610.0,0.65665485]
[1753507921983,0.03310289,117620.0,117610.0,0.63965044]
[1753507922206,0.05681289,117620.0,117610.0,0.65665485]
[1753507922409,0.03981,117620.0,117610.0,0.65665485]
[1753507922631,0.05681267,117620.0,117610.0,0.65665485]
[1753507923034,0.0483113,117620.0,117610.0,0.65665485]
[1753507923597,0.05681274,117620.0,117610.0,0.65665485]
[1753507923818,0.53256223,117620.0,117610.0,0.003]
[1753507924282,0.53256223,117620.0,117610.0,0.17305356]
[1753507926265,0.52406064,117620.0,117610.0,0.17305356]
[1753507929392,0.36252313,117620.0,117610.0,0.17305356]
[1753507929614,0.37102501,117620.0,117610.0,0.17305356]
[1753507930052,0.08704528,117620.0,117610.0,0.17305356]
[1753507931581,0.25708438,117620.0,117610.0,0.17305356]
[1753507935377,0.24858279,117620.0,117610.0,0.17305356]
[1753507935843,0.53256252,117620.0,117610.0,0.17305356]
[1753507936290,0.52406071,117620.0,117610.0,0.17305356]
[1753507939284,0.52406071,117620.0,117610.0,0.003]
[1753507939493,0.24008098,117620.0,117610.0,0.003]
[1753507939705,0.52406071,117620.0,117610.0,0.17305356]
[1753507943795,0.51555883,117620.0,117610.0,0.17305356]
[1753507944696,0.60003613,117620.0,117610.0,0.003]
[1753507956248,0.3160564,117620.0,117610.0,0.003]
[1753507956482,0.60003613,117620.0,117610.0,0.003]
[1753507963795,0.72839613,117620.0,117610.0,0.003]
[1753507973037,1.06839613,117620.0,117610.0,0.003]
[1753507973447,0.7844164,117620.0,117610.0,0.003]
[1753507973676,1.06839613,117620.0,117610.0,0.003]
[1753507996466,1.15287343,117620.0,117610.0,0.003]
[1753507996909,1.06839613,117620.0,117610.0,0.003]
[1753508012963,0.94853794,117620.0,117610.0,0.17305356]
[1753508013187,1.08539953,117620.0,117610.0,0.003]
[1753508022536,1.06889953,117620.0,117610.0,0.003]
[1753508037943,0.94053953,117620.0,117610.0,0.003]
[1753508038191,1.06889953,117620.0,117610.0,0.003]
[1753508040727,0.5978773,117620.0,117610.0,0.17305356]
[1753508040938,1.06130111,117620.0,117610.0,0.17305356]
[1753508041139,1.05279967,117620.0,117610.0,0.17305356]
[1753508041317,1.05279967,117620.0,117610.0,0.003]
[1753508042118,1.05279967,117620.0,117610.0,0.17305356]
[1753508042322,0.4768613,117620.0,117610.0,0.52704596]
[1753508042628,0.49386448,117620.0,117610.0,0.54405095]
[1753508042822,0.49386448,117620.0,117610.0,0.2685736]
[1753508043055,0.49386448,117620.0,117610.0,0.53554849]
[1753508043287,0.50236629,117620.0,117610.0,0.51854329]
[1753508043481,0.51086824,117620.0,117610.0,0.52704596]
[1753508043692,0.50236629,117620.0,117610.0,0.53554856]
[1753508044304,0.51086817,117620.0,117610.0,0.52704596]
[1753508044471,0.51086817,117620.0,117610.0,0.53554856]
[1753508045559,0.51086817,117620.0,117610.0,0.52704596]
[1753508045794,0.50236687,117620.0,117610.0,0.51854329]
[1753508046450,0.51086882,117620.0,117610.0,0.51854329]
[1753508047145,0.51086882,117620.0,117610.0,0.52704596]
[1753508048327,0.51086882,117620.0,117610.0,0.23456356]
[1753508048540,0.5023673,117620.0,117610.0,0.23456356]
[1753508048956,0.5259273,117620.0,117610.0,0.23456356]
[1753508049188,0.68746474,117620.0,117610.0,0.23456356]
[1753508049410,0.68746474,117620.0,117610.0,0.23161356]
[1753508049629,0.68746474,117620.0,117610.0,0.21561356]
[1753508052404,0.68942474,117620.0,117610.0,0.21561356]
[1753508056178,0.68092293,117620.0,117610.0,0.21561356]
[1753508056387,0.68092293,117620.0,117610.0,0.19112356]
[1753508058490,0.95937078,117620.0,117610.0,0.003]
[1753508060220,0.95086883,117620.0,117610.0,0.003]
[1753508063510,0.96746883,117620.0,117610.0,0.003]
[1753508064378,0.96746883,117620.0,117610.0,0.17305356]
[1753508066918,0.96746883,117620.0,117610.0,0.003]
[1753508076060,0.6834891,117620.0,117610.0,0.003]
[1753508076284,0.96746883,117620.0,117610.0,0.003]
[1753508078138,0.6834891,117620.0,117610.0,0.003]
[1753508078619,0.6668891,117620.0,117610.0,0.003]
[1753508079317,1.06694613,117620.0,117610.0,0.003]
[1753508095557,1.05084613,117620.0,117610.0,0.003]
[1753508105930,0.7668664,117620.0,117610.0,0.003]
[1753508106138,1.05084613,117620.0,117610.0,0.003]
[1753508110151,1.05084613,117620.0,117610.0,0.17305356]
[1753508111157,0.7668664,117620.0,117610.0,0.17305356]
[1753508111745,1.05084613,117620.0,117610.0,0.17305356]
[1753508112047,0.88930891,117620.0,117610.0,0.17305356]
[1753508112281,0.90631252,117620.0,117610.0,0.17305356]
[1753508112452,1.07635162,117620.0,117610.0,0.17305356]
[1753508112872,1.06085162,117620.0,117610.0,0.17305356]
[1753508113076,0.77687189,117620.0,117610.0,0.17305356]
[1753508117804,0.77687189,117620.0,117610.0,0.46553596]
[1753508118019,0.77687189,117620.0,117610.0,0.46767596]
[1753508118236,0.77687189,117620.0,117610.0,0.45917329]
[1753508119396,0.44148047,117620.0,117610.0,0.49017589]
[1753508119608,0.57830199,117620.0,117610.0,0.53396842]
[1753508120290,0.58680387,117620.0,117610.0,0.53396842]
[1753508120528,0.4584838,117620.0,117610.0,0.53396842]
[1753508120760,0.5868038,117620.0,117610.0,0.53396842]
[1753508121284,0.57830199,117620.0,117610.0,0.54247088]
[1753508122410,0.36550462,117620.0,117610.0,0.55097326]
[1753508122612,0.49382462,117620.0,117610.0,0.55097326]
[1753508122849,0.49382462,117620.0,117610.0,0.54247088]
[1753508123309,0.49382462,117620.0,117610.0,0.55097326]
[1753508124199,0.50232643,117620.0,117610.0,0.54247088]
[1753508124701,0.49382462,117620.0,117610.0,0.54247088]
[1753508124930,0.50232643,117620.0,117610.0,0.54247088]
[1753508125700,0.50232643,117620.0,117610.0,0.25849115]
[1753508125939,0.49382462,117620.0,117610.0,0.26699353]
[1753508126296,0.49382462,117620.0,117610.0,0.25849115]
[1753508126494,0.49382462,117620.0,117610.0,0.26699346]
[1753508126766,0.49382462,117620.0,117610.0,0.26699353]
[1753508126970,0.49382462,117620.0,117610.0,0.25849115]
[1753508127391,0.50232635,117620.0,117610.0,0.25849115]
[1753508127833,0.50232635,117620.0,117610.0,0.24148616]
[1753508128046,0.52705679,117620.0,117610.0,0.22568623]
[1753508128474,0.52705679,117620.0,117610.0,0.23109883]
[1753508129119,0.52705679,117620.0,117610.0,0.23960136]
[1753508129333,0.17855491,117620.0,117610.0,0.23960136]
[1753508129733,0.18705672,117620.0,117610.0,0.23960136]
[1753508129951,0.18705672,117620.0,117610.0,0.23109883]
[1753508130462,0.18905672,117620.0,117610.0,0.23109883]
[1753508131020,0.18905672,117620.0,117610.0,0.23960136]
[1753508131240,0.18055491,117620.0,117610.0,0.24810382]
[1753508131439,0.18055491,117620.0,117610.0,0.28212422]
[1753508131644,0.18055491,117620.0,117610.0,0.20920382]
[1753508131832,0.18905679,117620.0,117610.0,0.21635883]
[1753508132524,0.18905679,117620.0,117610.0,0.22486136]
[1753508133127,0.18905672,117620.0,117610.0,0.24006136]
[1753508133361,0.18905672,117620.0,117610.0,0.22305623]
[1753508133534,0.19755867,117620.0,117610.0,0.23155883]
[1753508133809,0.18905672,117620.0,117610.0,0.24006136]
[1753508133985,0.18905672,117620.0,117610.0,0.22486136]
[1753508134763,0.18905672,117620.0,117610.0,0.21635883]
[1753508135305,0.19755867,117620.0,117610.0,0.21635883]
[1753508135509,0.18905672,117620.0,117610.0,0.22486136]
[1753508135709,0.1975586,117620.0,117610.0,0.21635883]
[1753508136313,0.1975586,117620.0,117610.0,0.19219883]
[1753508139167,0.1975586,117620.0,117610.0,0.18369623]
[1753508139372,0.1975586,117620.0,117610.0,0.19219883]
[1753508139813,0.19755903,117620.0,117610.0,0.18369623]
[1753508141889,0.18905708,117620.0,117610.0,0.19219883]
[1753508143623,0.18905708,117620.0,117610.0,0.18369623]
[1753508144044,0.18905708,117620.0,117610.0,0.19219883]
[1753508146376,0.18905708,117620.0,117610.0,0.18369623]
[1753508146771,0.17205339,117620.0,117610.0,0.18369623]
[1753508147005,0.18055527,117620.0,117610.0,0.19219883]
[1753508149025,0.18055527,117620.0,117610.0,0.20070136]
[1753508149229,0.18055527,117620.0,117610.0,0.19219883]
[1753508152820,0.18055527,117620.0,117610.0,0.20070136]
[1753508153610,0.17205339,117620.0,117610.0,0.20070136]
[1753508153814,0.17205339,117620.0,117610.0,0.20920382]
[1753508154019,0.17205339,117620.0,117610.0,0.20070136]
[1753508154210,0.18055527,117620.0,117610.0,0.20070136]
[1753508154440,0.17205339,117620.0,117610.0,0.19219883]
[1753508154615,0.17205339,117620.0,117610.0,0.20070129]
[1753508154813,0.17205339,117620.0,117610.0,0.22486129]
[1753508155482,0.18055527,117620.0,117610.0,0.22486136]
[1753508156202,0.18055527,117620.0,117610.0,0.19219883]
[1753508156631,0.18055527,117620.0,117610.0,0.20070136]
[1753508156842,0.17205339,117620.0,117610.0,0.20070136]
[1753508157277,0.17205339,117620.0,117610.0,0.20920382]
[1753508157922,0.1720531,117620.0,117610.0,0.20920353]
[1753508158155,0.1720531,117620.0,117610.0,0.20070115]
[1753508158392,0.16355144,117620.0,117610.0,0.22425115]
[1753508158615,0.13682144,117620.0,117610.0,0.25961584]
[1753508158847,0.14532303,117620.0,117610.0,0.25961584]
[1753508159110,0.14532303,117620.0,117610.0,0.32402956]
[1753508159332,0.14532303,117620.0,117610.0,0.24261093]
[1753508159558,0.14532303,117620.0,117610.0,0.25111324]
[1753508161979,0.14532303,117620.0,117610.0,0.23571324]
[1753508162193,0.16861303,117620.0,117610.0,0.22721093]
[1753508162390,0.16861303,117620.0,117610.0,0.30692907]
[1753508162606,0.16861303,117620.0,117610.0,0.23275324]
[1753508163046,0.16861303,117620.0,117610.0,0.22425093]
[1753508163253,0.17711476,117620.0,117610.0,0.21574855]
[1753508163677,0.17711476,117620.0,117610.0,0.20724609]
[1753508163890,0.18561664,117620.0,117610.0,0.20724609]
[1753508164111,0.18760664,117620.0,117610.0,0.20724609]
[1753508164323,0.18760657,117620.0,117610.0,0.20724609]
[1753508164532,0.18760657,117620.0,117610.0,0.21574855]
[1753508164736,0.18760657,117620.0,117610.0,0.18369609]
[1753508164944,0.17910476,117620.0,117610.0,0.18369609]
[1753508165141,0.17910476,117620.0,117610.0,0.19219855]
[1753508165290,0.17910476,117620.0,117610.0,0.18369609]
[1753508165782,0.18760657,117620.0,117610.0,0.18369609]
[1753508167261,0.19610845,117620.0,117610.0,0.18369616]
[1753508167505,0.18760657,117620.0,117610.0,0.19219862]
[1753508167852,0.18760657,117620.0,117610.0,0.19219869]
[1753508168521,0.19079657,117620.0,117610.0,0.19219869]
[1753508170302,0.19079657,117620.0,117610.0,0.20070115]
[1753508170509,0.19079657,117620.0,117610.0,0.19219869]
[1753508170936,0.20639657,117620.0,117610.0,0.19219869]
[1753508171960,0.20639657,117620.0,117610.0,0.20070115]
[1753508172415,0.20639657,117620.0,117610.0,0.19219869]
[1753508173099,0.12828,117620.0,117610.0,0.51969297]
[1753508173332,0.14528282,117620.0,117610.0,0.53408842]
[1753508173527,0.15378441,117620.0,117610.0,0.54259073]
[1753508173651,0.14528282,117620.0,117610.0,0.55109297]
[1753508173856,0.1367813,117620.0,117610.0,0.55109297]
[1753508174073,0.14528282,117620.0,117610.0,0.62964103]
[1753508174331,0.1367813,117620.0,117610.0,0.55959514]
[1753508174574,0.14528267,117620.0,117610.0,0.55959514]
[1753508175881,0.15378419,117620.0,117610.0,0.55109297]
[1753508176091,0.15378411,117620.0,117610.0,0.55109297]
[1753508176773,0.15378411,117620.0,117610.0,0.55959514]
[1753508177005,0.15378411,117620.0,117610.0,0.55109297]
[1753508177212,0.15378411,117620.0,117610.0,0.55959514]
[1753508177800,0.15378411,117620.0,117610.0,0.27561541]
[1753508178005,0.15378411,117620.0,117610.0,0.55959514]
[1753508178402,0.1367813,117620.0,117610.0,0.55959514]
[1753508179075,0.14528274,117620.0,117610.0,0.55959514]
[1753508179270,0.12828,117620.0,117610.0,0.55959514]
[1753508179679,0.1367813,117620.0,117610.0,0.55959514]
[1753508180705,0.12828,117620.0,117610.0,0.55959514]
[1753508181164,0.1367813,117620.0,117610.0,0.55959514]
[1753508181710,0.12828,117620.0,117610.0,0.55959514]
[1753508182360,0.04879252,117630.0,117620.0,0.18704264]
[1753508182564,0.17707252,117630.0,117620.0,0.46454064]
[1753508182790,0.17906252,117630.0,117620.0,0.20411091]
[1753508182981,0.17906252,117630.0,117620.0,0.49659237]
[1753508182982,0.17056151,117630.0,117620.0,0.49659237]
[1753508183221,0.17056151,117630.0,117620.0,0.50509403]
[1753508183428,0.17906245,117630.0,117620.0,0.50509403]
[1753508183638,0.17906245,117630.0,117620.0,0.48909064]
[1753508183828,0.18756353,117630.0,117620.0,0.49009064]
[1753508184087,0.17906245,117630.0,117620.0,0.49859237]
[1753508184307,0.18756346,117630.0,117620.0,0.46654064]
[1753508184704,0.18756346,117630.0,117620.0,0.18256091]
[1753508185342,0.18756346,117630.0,117620.0,0.19106264]
[1753508185491,0.19075346,117630.0,117620.0,0.18256091]
[1753508185948,0.19925454,117630.0,117620.0,0.18256091]
[1753508186349,0.19075346,117630.0,117620.0,0.19106264]
[1753508186760,0.19925462,117630.0,117620.0,0.18256098]
[1753508187580,0.21585462,117630.0,117620.0,0.18256098]
[1753508188661,0.20735346,117630.0,117620.0,0.19106279]
[1753508188868,0.21585462,117630.0,117620.0,0.18256098]
[1753508191354,0.21585462,117630.0,117620.0,0.18256105]
[1753508192000,0.21585513,117630.0,117620.0,0.19106293]
[1753508192392,0.21585513,117630.0,117620.0,0.19953111]
[1753508193175,0.21585513,117630.0,117620.0,0.18256105]
[1753508193385,0.2073539,117630.0,117620.0,0.46654078]
[1753508193961,0.2073539,117630.0,117620.0,0.47504266]
[1753508194395,0.2073539,117630.0,117620.0,0.46654078]
[1753508194916,0.21585513,117630.0,117620.0,0.46654078]
[1753508195115,0.21585513,117630.0,117620.0,0.47504266]
[1753508195369,0.21585513,117630.0,117620.0,0.46654078]
[1753508195596,0.21585513,117630.0,117620.0,0.47504266]
[1753508195818,0.21585513,117630.0,117620.0,0.46654078]
[1753508196065,0.21585513,117630.0,117620.0,0.47504266]
[1753508196282,0.21585513,117630.0,117620.0,0.18256105]
[1753508196544,0.21585513,117630.0,117620.0,0.1740591]
[1753508196757,0.21585513,117630.0,117620.0,0.18256105]
[1753508197818,0.21585513,117630.0,117620.0,0.1740591]
[1753508198061,0.20735434,117630.0,117620.0,0.1740591]
[1753508198311,0.19566311,117630.0,117620.0,0.48136883]
[1753508198509,0.19566311,117630.0,117620.0,0.45803883]
[1753508198711,0.19887311,117630.0,117620.0,0.46654078]
[1753508199142,0.19887311,117630.0,117620.0,0.47504266]
[1753508199615,0.19887311,117630.0,117620.0,0.46654078]
[1753508200179,0.19887311,117630.0,117620.0,0.18256105]
[1753508200645,0.04509,117630.0,117620.0,0.49204576]
[1753508200871,0.13678058,117630.0,117620.0,0.50987432]
[1753508201074,0.13678058,117630.0,117620.0,0.50137266]
[1753508201298,0.04808036,117640.0,117630.0,0.18702704]
[1753508201511,0.18486087,117640.0,117630.0,0.48788561]
[1753508201732,0.15935993,117640.0,117630.0,0.50788756]
[1753508201974,0.16785993,117640.0,117630.0,0.50788763]
[1753508202219,0.16785993,117640.0,117630.0,0.2239079]
[1753508202430,0.16785993,117640.0,117630.0,0.52488929]
[1753508202648,0.16785993,117640.0,117630.0,0.52488878]
[1753508202871,0.16785993,117640.0,117630.0,0.22390754]
[1753508203075,0.16785993,117640.0,117630.0,0.23240833]
[1753508203304,0.16785993,117640.0,117630.0,0.51638806]
[1753508203723,0.17636007,117640.0,117630.0,0.50788727]
[1753508204151,0.17636007,117640.0,117630.0,0.50888727]
[1753508204565,0.16785993,117640.0,117630.0,0.50888727]
[1753508204802,0.17636,117640.0,117630.0,0.51738806]
[1753508205020,0.17636,117640.0,117630.0,0.50588727]
[1753508205832,0.15378,117640.0,117630.0,0.51438806]
[1753508206052,0.15378,117640.0,117630.0,0.51738806]
[1753508206250,0.17636,117640.0,117630.0,0.50888727]
[1753508206485,0.17636,117640.0,117630.0,0.51738806]
[1753508206651,0.16785993,117640.0,117630.0,0.51538806]
[1753508207681,0.17636007,117640.0,117630.0,0.50688727]
[1753508208025,0.16785993,117640.0,117630.0,0.50688727]
[1753508208200,0.17636,117640.0,117630.0,0.51538806]
[1753508208412,0.16785993,117640.0,117630.0,0.52388878]
[1753508208629,0.16785993,117640.0,117630.0,0.51538806]
[1753508208858,0.14527993,117640.0,117630.0,0.52688878]
[1753508209481,0.16785993,117640.0,117630.0,0.51838806]
[1753508209669,0.08297359,117650.0,117640.0,0.17851071]
[1753508209817,0.29569046,117650.0,117640.0,0.18056071]
[1753508210024,0.29021017,117650.0,117640.0,0.18906114]
[1753508210462,0.28171046,117650.0,117640.0,0.1975615]
[1753508210620,0.28171046,117650.0,117640.0,0.18906114]
[1753508210839,0.2902101,117650.0,117640.0,0.18906114]
[1753508211102,0.2902101,117650.0,117640.0,0.1975615]
[1753508211274,0.19723316,117650.0,117640.0,0.18906114]
[1753508211473,0.18873373,117650.0,117640.0,0.48154116]
[1753508211676,0.17353373,117650.0,117640.0,0.18906114]
[1753508211875,0.18203337,117650.0,117640.0,0.1975615]
[1753508212188,0.19843337,117650.0,117640.0,0.1975615]
[1753508213051,0.19843337,117650.0,117640.0,0.18906114]
[1753508213254,0.19843337,117650.0,117640.0,0.48154123]
[1753508213454,0.19843316,117650.0,117640.0,0.49854174]
[1753508213662,0.19843316,117650.0,117640.0,0.49004152]
[1753508213867,0.19843316,117650.0,117640.0,0.49854174]
[1753508214067,0.19843316,117650.0,117640.0,0.49840748]
[1753508214271,0.19843316,117650.0,117640.0,0.1975615]
[1753508214479,0.20693287,117650.0,117640.0,0.47304087]
[1753508214633,0.19843316,117650.0,117640.0,0.48154116]
[1753508214885,0.2069328,117650.0,117640.0,0.48154123]
[1753508215053,0.2069328,117650.0,117640.0,0.47304087]
[1753508215252,0.21543258,117650.0,117640.0,0.46454044]
[1753508216575,0.21543258,117650.0,117640.0,0.1720602]
[1753508216924,0.21543258,117650.0,117640.0,0.18056071]
[1753508217500,0.21543251,117650.0,117640.0,0.18056071]
[1753508217878,0.21543251,117650.0,117640.0,0.18906114]
[1753508218083,0.20693323,117650.0,117640.0,0.18056071]
[1753508218684,0.20693323,117650.0,117640.0,0.46454044]
[1753508219413,0.37692898,117650.0,117640.0,0.45603993]
[1753508220670,0.37692898,117650.0,117640.0,0.1720602]
[1753508221631,0.36842963,117650.0,117640.0,0.1720602]
[1753508221831,0.38342963,117650.0,117640.0,0.1700102]
[1753508224926,0.66740936,117650.0,117640.0,0.1700102]
[1753508226704,0.4889139,117650.0,117640.0,0.17851056]
[1753508226900,0.4889139,117650.0,117640.0,0.1700102]
[1753508227763,0.65890965,117650.0,117640.0,0.1700102]
[1753508227968,0.37492992,117650.0,117640.0,0.1700102]
[1753508228546,0.35992992,117650.0,117640.0,0.1700102]
[1753508229757,0.19843395,117650.0,117640.0,0.17851071]
[1753508230199,0.19843395,117650.0,117640.0,0.1700102]
[1753508231566,0.19843395,117650.0,117640.0,0.17851071]
[1753508232032,0.19843395,117650.0,117640.0,0.1700102]
[1753508233400,0.19843395,117650.0,117640.0,0.45398993]
[1753508234125,0.3841297,117650.0,117640.0,0.45398993]
[1753508234351,0.3841297,117650.0,117640.0,0.1700102]
[1753508236234,0.19843395,117650.0,117640.0,0.17851071]
[1753508236642,0.19843395,117650.0,117640.0,0.1700102]
[1753508238148,0.3684297,117650.0,117640.0,0.1700102]
[1753508240174,0.19843395,117650.0,117640.0,0.18056071]
[1753508240813,0.19843395,117650.0,117640.0,0.18906114]
[1753508241351,0.19843395,117650.0,117640.0,0.18056071]
[1753508241556,0.19843395,117650.0,117640.0,0.1720602]
[1753508242111,0.19843395,117650.0,117640.0,0.18056071]
[1753508242724,0.19843395,117650.0,117640.0,0.18906114]
[1753508242959,0.19843395,117650.0,117640.0,0.18056071]
[1753508243158,0.19843395,117650.0,117640.0,0.1720602]
[1753508243559,0.19843395,117650.0,117640.0,0.18056071]
[1753508243773,0.19843395,117650.0,117640.0,0.18906114]
[1753508244234,0.18993388,117650.0,117640.0,0.18906114]
[1753508244433,0.18993388,117650.0,117640.0,0.1975615]
[1753508244700,0.17032388,117650.0,117640.0,0.1975615]
[1753508244905,0.17882359,117650.0,117640.0,0.2214615]
[1753508245341,0.17882359,117650.0,117640.0,0.50544123]
[1753508245759,0.17032388,117650.0,117640.0,0.51394152]
[1753508245987,0.17882359,117650.0,117640.0,0.50544123]
[1753508246459,0.17882359,117650.0,117640.0,0.49694087]
[1753508247102,0.17878359,117650.0,117640.0,0.48844044]
[1753508247340,0.17878359,117650.0,117640.0,0.49694087]
[1753508248149,0.18728337,117650.0,117640.0,0.49694087]
[1753508248389,0.18728337,117650.0,117640.0,0.20446071]
[1753508248596,0.20298337,117650.0,117640.0,0.18056071]
[1753508249028,0.20298337,117650.0,117640.0,0.18906114]
[1753508249682,0.20298337,117650.0,117640.0,0.18056071]
[1753508250032,0.20298337,117650.0,117640.0,0.18906114]
[1753508250254,0.20614337,117650.0,117640.0,0.18906114]
[1753508250455,0.18598388,117650.0,117640.0,0.1975615]
[1753508250692,0.19578206,117650.0,117640.0,0.2221315]
[1753508251308,0.19578206,117650.0,117640.0,0.21363114]
[1753508251775,0.17118206,117650.0,117640.0,0.21363114]
[1753508251985,0.16268235,117650.0,117640.0,0.53355087]
[1753508252106,0.16268235,117650.0,117640.0,0.54205109]
[1753508252517,0.16268235,117650.0,117640.0,0.53395123]
[1753508252760,0.13718409,117650.0,117640.0,0.53395109]
[1753508252958,0.13718409,117650.0,117640.0,0.24997136]
[1753508253187,0.13718409,117650.0,117640.0,0.53395109]
[1753508253640,0.00898409,117650.0,117640.0,0.53395109]
[1753508253861,0.13718409,117650.0,117640.0,0.53395109]
[1753508254345,0.00898409,117650.0,117640.0,0.53395109]
[1753508254558,0.13718409,117650.0,117640.0,0.54905109]
[1753508256375,0.14568329,117650.0,117640.0,0.54905109]
[1753508257550,0.12868496,117650.0,117640.0,0.54905109]
[1753508259541,0.12868496,117650.0,117640.0,0.26507136]
[1753508259762,0.12868496,117650.0,117640.0,0.59341075]
[1753508260857,0.13718409,117650.0,117640.0,0.57831075]
[1753508262157,0.12868496,117650.0,117640.0,0.57831075]
[1753508262408,0.13718409,117650.0,117640.0,0.57831075]
[1753508263063,0.12868496,117650.0,117640.0,0.57831075]
[1753508263561,0.12868496,117650.0,117640.0,0.29433102]
[1753508263741,0.13718416,117650.0,117640.0,0.57831075]
[1753508264339,0.12868496,117650.0,117640.0,0.56221075]
[1753508264567,0.13718409,117650.0,117640.0,0.56221075]
[1753508265037,0.16919337,117650.0,117640.0,0.56221075]
[1753508265266,0.16919329,117650.0,117640.0,0.56221075]
[1753508265915,0.16919329,117650.0,117640.0,0.27823102]
[1753508266131,0.17769257,117650.0,117640.0,0.56221075]
[1753508267622,0.17769257,117650.0,117640.0,0.27823116]
[1753508267842,0.18619199,117650.0,117640.0,0.28349123]
[1753508268055,0.17769257,117650.0,117640.0,0.56747045]
[1753508268698,0.17769257,117650.0,117640.0,0.55047038]
[1753508268914,0.18619192,117650.0,117640.0,0.55897045]
[1753508269784,0.18619192,117650.0,117640.0,0.55047038]
[1753508270010,0.19469141,117650.0,117640.0,0.55047038]
[1753508270228,0.18619192,117650.0,117640.0,0.55897045]
[1753508271093,0.17769257,117650.0,117640.0,0.56747045]
[1753508271311,0.17769257,117650.0,117640.0,0.55897045]
[1753508271529,0.18619199,117650.0,117640.0,0.26649065]
[1753508271741,0.18619199,117650.0,117640.0,0.55047038]
[1753508272172,0.18619199,117650.0,117640.0,0.55897045]
[1753508272381,0.18619199,117650.0,117640.0,0.55047038]
[1753508272590,0.18619199,117650.0,117640.0,0.54197024]
[1753508272803,0.18821199,117650.0,117640.0,0.53347002]
[1753508273034,0.19671156,117650.0,117640.0,0.54197031]
[1753508273284,0.19671214,117650.0,117640.0,0.25799065]
[1753508273539,0.18821243,117650.0,117640.0,0.54197038]
[1753508273754,0.18821243,117650.0,117640.0,0.53347002]
[1753508273969,0.19671214,117650.0,117640.0,0.54197038]
[1753508274188,0.18821243,117650.0,117640.0,0.52590067]
[1753508274412,0.20431243,117650.0,117640.0,0.52590067]
[1753508274866,0.20431243,117650.0,117640.0,0.24192094]
[1753508275077,0.20431243,117650.0,117640.0,0.52590067]
[1753508277372,0.20431243,117650.0,117640.0,0.51740038]
[1753508277555,0.21281207,117650.0,117640.0,0.51740038]
[1753508277768,0.21281207,117650.0,117640.0,0.50890002]
[1753508277920,0.21281207,117650.0,117640.0,0.51740038]
[1753508278134,0.21281207,117650.0,117640.0,0.50039959]
[1753508278354,0.21281265,117650.0,117640.0,0.5089001]
[1753508278573,0.21281265,117650.0,117640.0,0.51740053]
[1753508278955,0.21281258,117650.0,117640.0,0.52590089]
[1753508279192,0.20431287,117650.0,117640.0,0.53440118]
[1753508279401,0.20431287,117650.0,117640.0,0.51740053]
[1753508279824,0.20431287,117650.0,117640.0,0.52590089]